{"text_format":"1","workbook":"xlsx","n_sheets":1,"sheets":["conceptos"],"not_rendered":{"charts":0,"images":2,"macros":1,"external_links":0,"defined_names":1,"comments":0,"pivot_tables":0},"unopened":[],"bounds":{"document_bytes":16777216,"sheet_cells":100000,"rows_first":2000,"rows_last":500,"rows_between":2000,"halvings":0,"cell_chars":16384,"cell_head_chars":4096},"cells_cut":0,"cells_raw":0,"read":"whole","date_system":"1900"}

{"sheet":"conceptos","index":0,"n_rows":62,"n_cols":8,"rows_kept":62,"cut":false,"hidden":false,"merged":[[59,0,59,4],[60,0,61,4],[13,0,13,6],[0,2,0,5],[9,2,9,5],[1,2,3,5],[4,2,4,3],[6,2,6,3],[7,2,7,3],[4,4,4,5],[5,4,5,5],[6,4,6,5],[7,4,7,5],[10,2,10,5],[11,2,11,5],[5,1,8,1]]}
[null,"GOBIERNO DEL ESTADO DE JALISCO","LICITACIÓN PÚBLICA ESTATAL"]
[null,"INSTITUTO DE LA INFRAESTRUCTURA FÍSICA EDUCATIVA DEL","E-REM-B-REH-04524-LP-0071-2020"]
[null,"ESTADO DE JALISCO"]
[]
[null,"DESCRIPCIÓN GENERAL DE LOS TRABAJOS:","FECHA DE INICIO:"]
[null,null,null,"FECHA DE TERMINACIÓN:"]
[null,null,"PLAZO DE EJECUCIÓN:"]
[null,null,"FECHA:"]
[]
[null,"RAZÓN SOCIAL DEL LICITANTE:","NOMBRE, CARGO Y FIRMA DEL LICITANTE:",null,null,null,"DOCUMENTO"]
[]
[]
[]
["PRESUPUESTO DE OBRA"]
[]
["CLAVE","DESCRIPCIÓN","UNIDAD","CANTIDAD","PRECIO UNITARIO ($)","PRECIO UNITARIO ($) CON LETRA","IMPORTE ($) M.N."]
["TRABAJO : BAS-REH-04524","TRABAJOS DE REHABILITACIÓN GENERAL EN LA ESCUELA SECUNDARIA J. JESÚS DURÁN CÁRDENAS CCT 14DES0106M, UBICADA EN LA COLONIA EL REFUGIO, MUNICIPIO DE SAN PEDRO TLAQUEPAQUE, JALISCO.",null,null,null,null,{"$f":"TEXT(SUM(G18 + G41), \"$ #,##0.00 ;\")","v":"$ 0.00 "}]
["33A","MURO DIVISORIO",null,null,null,null,{"$f":"TEXT(SUM(G19 + G25 + G29 + G35 + G39), \"$ #,##0.00 ;\")","v":"$ 0.00 "}]
["33A.01(140)","DEMOLICIONES, DESMONTAJES Y MECANICA DE SUELOS    ",null,null,null,null,{"$f":"TEXT(SUM(G20:G24), \"$ #,##0.00 ;\")","v":"$ 0.00 "}]
[140076,"DEMOLICION DE MURO DE LADRILLO DE LAMA Y/O BLOCK DE JALCRETO DE 14 CMS. DE ESPESOR A CUALQUIER NIVEL, INCLUYE:  DEMOLICION DE DALAS, CADENAS Y CASTILLOS,  DEMOLICION DE RECUBRMIENTOS, APLANADOS, AZULEJO,(PROTECCIONES DE PISOS, VIDRIOS, PUERTAS, VENTANAS, LAMPARAS Y DEMAS INSTALACIONES QUE PUDIERAN RESULTAR DAÑADAS EN EL PROCESO DE LA DEMOLICION.) HERRAMIENTAS, EQUIPO DE SEGURIDAD,  ANDAMIOS, MANO DE OBRA, RETIRO Y ACARREO DE MATERIALES DE DESHECHO DENTRO Y FUERA DE LA OBRA ATIRADERO AUTORIZADO Y LIMPIEZA DEL AREA DE LOS TRABAJOS.","M2 ","358.7400",0,"CERO PESOS 00/100 M.N.",0,227583]
[140088,"DEMOLICION DE RODAPIE Y/O MAMPOSTERIA DE PIEDRA  EXISTENTE, INCLUYE: HERRAMIENTAS, LIMPIEZA, MANO DE OBRA, CARGA Y ACARREO DE MATERIAL  PRODUCTO DE LA DEMOLICION DENTRO Y  FUERA DE LA OBRA.","M3 ","118.0500",0,"CERO PESOS 00/100 M.N.",0,227584]
[140416,"DESMONTAJE DE CERCA PERIMETRAL A BASE DE MALLA CICLON EXISTENTE EN OBRA, CON RECUPERACION, INCLUYE:  RETIRO DE POSTES, MALLA,  ALAMBRE DE PUAS, MANIOBRAS DE ARRASTRE, HERRAMIENTAS, MANO DE OBRA Y ALMACENAJE PARA SU POSTERIOR COLOCACION.","ML ","124.2700",0,"CERO PESOS 00/100 M.N.",0,227585]
[140669,"DEMOLICION DE REPISON DE CONCRETO EXISTENTE EN MAMPOSTERIA DE PIEDRA BRAZA, CON SECCION RECTANGULAR DE 40 CMS. DE ANCHO, CON ALTURA DE 5 CM, INCLUYE: HERRAMIENTA, MANO DE OBRA, LIMPIEZA Y ACARREOS DENTRO Y FUERA DE LA OBRA DEL MATERIAL PRODUCTO DE LA DEMOLICION.","ML ","55.0000",0,"CERO PESOS 00/100 M.N.",0,227586]
[928657,"RETIRO DE MALLA CICLON, POSTE DE TUBO Y ALAMBRE DE PUAS CON RECUPERACION Y EXCAVANDO EL AREA DEL ANCLAJE DEL TUBO. INCLUYE ACARREO DE MALLA AL LUGAR DE BODEGA.","ML ","68.3400",0,"CERO PESOS 00/100 M.N.",0,227587]
["33A.02(150)","TRABAJOS PRELIMINARES                             ",null,null,null,null,{"$f":"TEXT(SUM(G26:G28), \"$ #,##0.00 ;\")","v":"$ 0.00 "}]
[150120,"TRAZO Y NIVELACION DE EXTERIORES ESTABLECIENDO REFERENCIAS DEFINITIVAS, CON TRANSITO Y NIVEL (EQUIPO TOPOGRAFICO), INCLUYE: PERSONAL TECNICO CALIFICADO, ESTACAS, MOJONERAS, LOCALIZACION DE EJES Y/O ENTRE EJES, BANCOS DE NIVEL, MATERIALES PARA SEÑALAMIENTO, EQUIPO, HERRAMIENTA Y MANO DE OBRA.","M2 ","65.5000",0,"CERO PESOS 00/100 M.N.",0,227588]
[152711,"EXCAVACION DE CEPAS A MANO, EN MATERIAL TIPO \"C\" (TEPETATE DURO O BOLEO EMPACADO HASTA UN 50 %), DE 0.00 A 2.00 MTS. DE PROFUNDIDAD, EN SECO, CON CUÑA Y MARRO, CON TRASPALEO DE 3.00 MTS. DEL EJE DE LA EXCAVACION, INCLUYE AFINE DE TALUDES Y FONDO, VOLUMEN MEDIDO EN BANCO.","M3 ","28.7000",0,"CERO PESOS 00/100 M.N.",0,227589]
[156002,"CARGA POR CUALQUIER MEDIO Y ACARREO EN CAMION DE MATERIAL DE DESPERDICIO PRODUCTO DE LAS EXCAVACIONES FUERA DE LA OBRA, A LUGAR PERMITIDO POR LAS AUTORIDADES CORRESPONDIENTES, MEDIDO EN BANCO. INCLUYE CARGA,  ACARREO Y DESCARGA A TIRO LIBRE, HERRAMIENTA, EQUIPO, MATERIALES DE CONSUMO Y MANO DE OBRA.","M3 ","6.6000",0,"CERO PESOS 00/100 M.N.",0,227590]
["33A.03(160)","CIMENTACION                                       ",null,null,null,null,{"$f":"TEXT(SUM(G30:G34), \"$ #,##0.00 ;\")","v":"$ 0.00 "}]
[162002,"CIMIENTO DE PIEDRA BRAZA ACOMODADA PIEDRA POR PIEDRA, ASENTADA CON MORTERO CEMENTO-ARENA  EN PROPORCION 1:3. INCLUYE: MATERIALES, DESPERDICIOS, HERRAMIENTAS, LIMPIEZA, MANO DE OBRA Y ACARREO DE MATERIALES AL SITIO DE SU UTILIZACION.","M3 ","36.0000",0,"CERO PESOS 00/100 M.N.",0,227591]
[162102,"MAMPOSTERIA DE PIEDRA BRAZA, ACABADO APARENTE UNA CARA DE 0 A 1.5 MTS. DE ALTURA., ASENTADA CON MORTERO CEMENTO-ARENA 1:3. INCLUYE: MATERIALES, HERRAMIENTAS, PLOMEO,  LIMPIEZA, MANO DE OBRA Y ACARREO DE MATERIALES AL SITIO DE SU UTILIZACION.","M3 ","31.1000",0,"CERO PESOS 00/100 M.N.",0,227592]
[162418,"NIVELACION DE MURO DE MAMPOSTERIA CON RAJUELA DE PIEDRA BRAZA JUNTEADA CON MORTERO CEM-ARE 1:3. DE 0.10 M. DE ESPESOR X 0.50 M. DE ANCHO PROMEDIO. INCLUYE: NIVELACION, TRAZO, MANO DE OBRA Y HERRAMIENTA. (NO INCLUYE MATERIALES)","ML ","65.5000",0,"CERO PESOS 00/100 M.N.",0,227593]
[180052,"RELLENO EN CEPAS POR CUALQUIER MEDIO, CON MATERIAL DE BANCO, (ARENA LIMOSA, TEPETATE, ETC.) COMPACTADO AL 90% PROCTOR, EN CAPAS DE 15 CM, MEDIDO COMPACTO. INCLUYE:  SUMINISTRO DE AGUA PARA LOGRAR HUMEDAD OPTIMA, DESPERDICIOS, TENDIDO, TRASPALEOS,  EQUIPO, PRUEBAS DE COMPACTACION, AFINE, NIVELACION, HERRAMIENTAS, MANO DE OBRA Y  ACARREO HASTA EL SITIO DE SU COLOCACION.  (VOLUMEN MEDIDO COMPACTADO).","M3 ","5.3000",0,"CERO PESOS 00/100 M.N.",0,227594]
[192810,"BASE PARA CASTILLO DE 40.0 X 40.0 X 50.0 CM, EN CIMENTACION DE PIEDRA, CON CONCRETO F'C=150 KG/CM2, TMA=3/4\", CON 4 VARILLAS DE 3/8\" DE DIAMETRO Y ESTRIBOS DE 1/4\" @ 15.0 CM. CIMBRA COMUN,  INCLUYE: CIMBRADO Y DESCIMBRADO, COLADO, VIBRADO, CURADO, MATERIALES, DESPERDICIOS, HERRAMIENTAS, LIMPIEZA, MANO DE OBRA Y ACARREO DE MATERIALES AL SITIO DE SU UTILIZACION.","PZA","24.0000",0,"CERO PESOS 00/100 M.N.",0,227595]
["33A.04(310)","MUROS, CADENAS, CASTILLOS Y REPIZONES.            ",null,null,null,null,{"$f":"TEXT(SUM(G36:G38), \"$ #,##0.00 ;\")","v":"$ 0.00 "}]
[310865,"DALA DE CONCRETO F'C=150 KG/CM2, T.M.A.=3/4\", CON SECCION DE 14 X 20 CMS., ARMADA CON 4 VARILLAS DEL # 3 Y ESTRIBOS DEL NO. 3 @ 15 CMS., INCLUYE: ARMADO, COLADO, CURADO, VIBRADO, CIMBRA APARENTE, DESCIMBRA, TRASLAPES, CRUCES DE VARILLAS CON ELEMENTOS TRANSVERSALES, DESPERDICIOS, MANO DE OBRA, HERRAMIENTA Y ACARREO DE MATERIALES AL SITIO DE SU UTILIZACION, A CUALQUIER ALTURA.","ML ","131.0000",0,"CERO PESOS 00/100 M.N.",0,227596]
[312685,"CASTILLO DE CONCRETO F'C=150 KG/CM2, T.M.A.=3/4\", CON SECCION DE 18 X 20 CMS., ARMADA CON 4 VARILLAS DEL # 3 Y ESTRIBOS DEL NO. 2 @ 15 CMS., INCLUYE: ARMADO, COLADO, CURADO, VIBRADO, CIMBRA APARENTE, DESCIMBRA, DESPERDICIOS, TRASLAPES, CRUCES DE VARILLAS CON ELEMENTOS TRANSVERSALES, OCHABOS EN ARISTAS, ANDAMIOS, MANO DE OBRA, HERRAMIENTA Y ACARREO DE MATERIALES AL SITIO DE SU UTILIZACION, A CUALQUIER ALTURA.","ML ","97.4000",0,"CERO PESOS 00/100 M.N.",0,227597]
[314018,"MURO DE TABIQUE DE LAMA, DE 14 CMS. DE ESPESOR PROMEDIO, A SOGA, CON TABIQUE DE LAMA 7 X 14 X 28 CMS., CON JUNTAS DE 2 CM. DE ESPESOR, ACABADO COMUN, ASENTADO CON MORTERO CEMENTO-ARENA EN PROPORCION 1:4, EN CUALQUIER NIVEL, INCLUYE: TRAZO, NIVELACION, PLOMEO, ANDAMIOS, DESPERDICIOS, MANO DE OBRA, LIMPIEZA Y ACARREO DE MATERIALES AL SITIO DE SU UTILIZACION.","M2 ","135.5000",0,"CERO PESOS 00/100 M.N.",0,227598]
["33A.05(428)","ACOTAMIENTO PERIMETRAL                            ",null,null,null,null,{"$f":"TEXT(SUM(G40:G40), \"$ #,##0.00 ;\")","v":"$ 0.00 "}]
[906315,"REVISION Y REPARACION DE MALLA CICLONICA, INCLUYE: POSTES DE ARRANQUE, BARRA INFERIOR Y SUPERIOR, TENSORES, MANO DE OBRA,  ACARREO DE MATERIALES DENTRO Y FUERA DE LA OBRA, ACCESORIOS DE COLOCACION, DESINSTALACION DE LA MALLA EXISTENTE HERRAMIENTA NECESARIA Y LIMPIEZA DEL AREA DE TRABAJO.","M2 ","124.2700",0,"CERO PESOS 00/100 M.N.",0,227599]
["04","RED HIDRAULICA",null,null,null,null,{"$f":"TEXT(SUM(G42 + G46), \"$ #,##0.00 ;\")","v":"$ 0.00 "}]
["04.01(565)","INSTALACION HIDRAULICA, SANITARIA Y GAS EN O. EXT.",null,null,null,null,{"$f":"TEXT(SUM(G43:G45), \"$ #,##0.00 ;\")","v":"$ 0.00 "}]
[180029,"FABRICACION DE FILTRO DE GRAVA DE 3/4\" EN DRENES, INCLUYE: TENDIDO, TRASPALEOS, EQUIPO,  HERRAMIENTAS, MANO DE OBRA Y  ACARREO HASTA EL SITIO DE SU COLOCACION. (MEDIDO EN BANCO).\n","M3 ","30.0000",0,"CERO PESOS 00/100 M.N.",0,227600]
[917971,"SUMINISTRO Y COLOCACION TUBO PVC HIDRAULICO RD-26 DE 10\" DIAM., INCLUYE: MATERIALES, CONEXIONES, ACCESORIOS, PEGAMENTOS, DESPERDICIOS, MANO DE OBRA, PRUEBAS Y ACARREO DE MATERIALES AL SITIO DE SU COLOCACION.","ML ","6.0000",0,"CERO PESOS 00/100 M.N.",0,227601]
[978240,"SUMINISTRO E INSTALACION DE DRENES EN MAMPOSTEO DE PIEDRA CON TUBERIA PVC DIAM 1 1/2\" SANITARIO HASTA POR 1.00 MT DE LONGITUD DEJANDO PENDIENTE DEL 2%  INSTALADO CON FRECUENCIA DOS DRENES CADA METRO CUADRADO DE SUPERFICIE, CONSIDERANDO ARROPAR EL EXTREMO ANEXO AL MURO CON PIEDRA 2\" ESPESOR 50 CM COMO FILTRO UNIDAD DE MEDIDA PÌEZA INCLUYE:  MATERIALES NECESARIOS, EQUIPO DE SEGURIDAD CON CHALECO VERDE TODO EL PERSONAL, MANO DE OBRA, HERRAMIENTA MENOR Y EQUIPO.","PZA","25.0000",0,"CERO PESOS 00/100 M.N.",0,227602]
["04.02(568)","INSTALACION RED PLUVIAL                           ",null,null,null,null,{"$f":"TEXT(SUM(G47:G47), \"$ #,##0.00 ;\")","v":"$ 0.00 "}]
[383300,"CANAL PARA CAPTACION ó CANALIZACION DE AGUAS PLUVIALES, CON UNA SECCION INTERIOR DE 45 CMS. EN SU PARTE SUPERIOR Y 30 CMS. EN SU PARTE INFERIOR,Y UNA PROFUNDIDAD DE 30 A 65 CMS. POR DECLIVE, INCLUYE: EXCAVACION, CORTES DE RAICES, RELLENO DE SUELO CEMENTO CON UN ESPESOR DE 40 CMS. HABILITADO DE CIMBRA, ARMADO, COLADO DE CONCRETO, FC=150 KG/CM2, DESCIMBRADO, PULIDO Y CURADO.","ML ","15.0000",0,"CERO PESOS 00/100 M.N.",0,227603]
[null,"RESUMEN DE PARTIDAS"]
["BAS-REH-04524","TRABAJOS DE REHABILITACIÓN GENERAL EN LA ESCUELA SECUNDARIA J. JESÚS DURÁN CÁRDENAS CCT 14DES0106M, UBICADA EN LA COLONIA EL REFUGIO, MUNICIPIO DE SAN PEDRO TLAQUEPAQUE, JALISCO.",null,null,null,null,{"$f":"G17","v":"$ 0.00 "}]
["33A","MURO DIVISORIO",null,null,null,null,{"$f":"G18","v":"$ 0.00 "}]
["33A.01(140)","DEMOLICIONES, DESMONTAJES Y MECANICA DE SUELOS    ",null,null,null,null,{"$f":"G19","v":"$ 0.00 "}]
["33A.02(150)","TRABAJOS PRELIMINARES                             ",null,null,null,null,{"$f":"G25","v":"$ 0.00 "}]
["33A.03(160)","CIMENTACION                                       ",null,null,null,null,{"$f":"G29","v":"$ 0.00 "}]
["33A.04(310)","MUROS, CADENAS, CASTILLOS Y REPIZONES.            ",null,null,null,null,{"$f":"G35","v":"$ 0.00 "}]
["33A.05(428)","ACOTAMIENTO PERIMETRAL                            ",null,null,null,null,{"$f":"G39","v":"$ 0.00 "}]
["04","RED HIDRAULICA",null,null,null,null,{"$f":"G41","v":"$ 0.00 "}]
["04.01(565)","INSTALACION HIDRAULICA, SANITARIA Y GAS EN O. EXT.",null,null,null,null,{"$f":"G42","v":"$ 0.00 "}]
["04.02(568)","INSTALACION RED PLUVIAL                           ",null,null,null,null,{"$f":"G46","v":"$ 0.00 "}]
[]
["IMPORTE CON LETRA (IVA INCLUIDO)",null,null,null,null,"SUBTOTAL M.N.",{"$f":"TEXT(G17,  \"$ #,##0.00 ;\")","v":"$ 0.00 "}]
[{"$f":"UPPER(CONVERTIRNUM(ROUND( G17 * 1.16, 2)))","v":"CERO PESOS 00/100 M.N."},null,null,null,null,"IVA M.N.",{"$f":"TEXT(ROUND( G17 * 0.16, 2),  \"$ #,##0.00 ;\")","v":"$ 0.00 "}]
[null,null,null,null,null,"TOTAL M.N.",{"$f":"TEXT(ROUND( G17 * 1.16, 2),  \"$ #,##0.00 ;\")","v":"$ 0.00 "}]